fUST/lending_fUST_20250717
["ID","MTS","AMOUNT","RATE_DAILY","PERIOD"]
[372800788,1752766256248,-1115.36,0.00022271,2]
[372800789,1752766256259,-2745.02,0.00022272,2]
[372800790,1752766256271,-799.63,0.00022272,2]
[372800791,1752766256281,-153.869837,0.00022284,7]
[372800792,1752766256290,-153.869837,0.00022284,7]
[372800793,1752766256301,-151.47140819,0.00022284,2]
[372800794,1752766256310,-168.18647811,0.00022284,2]
[372800795,1752766256320,-151.0,0.00022284,2]
[372800796,1752766256329,-151.0,0.00022284,2]
[372800797,1752766256338,-500.0,0.00022284,2]
[372800798,1752766256348,-151.0,0.00022284,2]
[372800799,1752766256357,-151.41970091,0.00022284,2]
[372800800,1752766256366,-500.0,0.00022284,2]
[372800801,1752766256374,-151.0,0.00022284,2]
[372800802,1752766256383,-151.0,0.00022284,2]
[372800803,1752766256391,-151.0,0.00022284,2]
[372800804,1752766256401,-151.0,0.00022284,2]
[372800805,1752766256410,-247.18468876,0.00022284,2]
[372800806,1752766256419,-151.0,0.00022284,2]
[372800807,1752766256428,-400.310213,0.00022284,7]
[372800808,1752766256437,-400.310213,0.00022284,7]
[372800809,1752766256446,-151.0,0.00022284,2]
[372800810,1752766256454,-955.0,0.00022284,2]
[372800811,1752766256464,-500.0,0.00022284,2]
[372800812,1752766256473,-500.0,0.00022284,2]
[372800813,1752766256483,-151.0,0.00022284,2]
[372800814,1752766256492,-151.0,0.00022284,2]
[372800815,1752766256501,-1156.0,0.00022284,2]
[372800816,1752766256510,-3070.91410292,0.00022284,2]
[372800817,1752766256520,-151.0,0.00022284,2]
[372800818,1752766256529,-151.0,0.00022284,2]
[372800819,1752766256538,-151.0,0.00022284,2]
[372800820,1752766256547,-151.0,0.00022284,2]
[372800821,1752766256556,-151.0,0.00022284,2]
[372800822,1752766256565,-500.0,0.00022284,2]
[372800823,1752766256575,-151.0,0.00022284,2]
[372800824,1752766256584,-500.0,0.00022284,2]
[372800825,1752766256593,-500.0,0.00022284,2]
[372800826,1752766256601,-198.0,0.00022284,2]
[372800827,1752766256610,-246.671648,0.00022291,14]
[372800828,1752766256619,-153.0,0.00022308,2]
[372800829,1752766256628,-153.0,0.00022308,2]
[372800830,1752766256637,-232.9305951,0.00022308,2]
[372800831,1752766256646,-3748.7668623,0.0002232,2]
[372800832,1752766256655,-601.80256504,0.0002232,2]
[372800833,1752766256664,-429.2412091,0.00022344,2]
[372800834,1752766256674,-246.671648,0.00022376,3]
[372800835,1752766256683,-246.671648,0.00022395,6]
[372800836,1752766256692,-9278.88606982,0.000224,2]
[372800837,1752766256699,-246.671648,0.00022437,14]
[372800838,1752766256707,-2047.69341318,0.00022458,2]
[372800839,1752766256714,-150.0,0.00022473,2]
[372800840,1752766256722,-150.0,0.00022473,2]
[372800841,1752766256730,-8466.63463186,0.00022486,7]
[372800842,1752766256738,-151.0,0.0002249,7]
[372800843,1752766256747,-151.0,0.0002249,7]
[372800844,1752766256755,-151.0,0.0002249,7]
[372800845,1752766256763,-226.744143,0.0002249,7]
[372800846,1752766256774,-151.0,0.0002249,7]
[372800847,1752766256783,-338.970632,0.0002249,7]
[372800848,1752766256791,-338.970632,0.0002249,7]
[372800849,1752766256799,-151.0,0.0002249,7]
[372800850,1752766256806,-151.0,0.0002249,7]
[372800851,1752766256813,-151.0,0.0002249,7]
[372800852,1752766256821,-151.0,0.0002249,7]
[372800853,1752766256829,-151.0,0.0002249,7]
[372800854,1752766256837,-151.0,0.0002249,7]
[372800855,1752766256847,-151.0,0.0002249,7]
[372800856,1752766256856,-151.0,0.0002249,7]
[372800857,1752766256866,-151.0,0.0002249,7]
[372800858,1752766256875,-164.267142,0.0002249,7]
[372800859,1752766256885,-151.0,0.0002249,7]
[372800860,1752766256894,-151.0,0.0002249,7]
[372800861,1752766256905,-176.573481,0.0002249,7]
[372800862,1752766256915,-176.573481,0.0002249,7]
[372800863,1752766256924,-176.573481,0.0002249,7]
[372800864,1752766256934,-176.573481,0.0002249,7]
[372800865,1752766256944,-151.0,0.0002249,7]
[372800866,1752766256953,-151.0,0.0002249,7]
[372800867,1752766256963,-151.0,0.0002249,7]
[372800868,1752766256972,-151.0,0.0002249,7]
[372800869,1752766256981,-482.103502,0.0002249,7]
[372800870,1752766256990,-482.103502,0.0002249,7]
[372800871,1752766257000,-151.0,0.0002249,7]
[372800872,1752766257010,-151.0,0.0002249,7]
[372800873,1752766257021,-484.041249,0.0002249,7]
[372800874,1752766257031,-484.041249,0.0002249,7]
[372800875,1752766257041,-484.041249,0.0002249,7]
[372800876,1752766257051,-484.041249,0.0002249,7]
[372800877,1752766257061,-447.811131,0.0002249,7]
[372800878,1752766257070,-447.811131,0.0002249,7]
[372800879,1752766257079,-447.811131,0.0002249,7]
[372800880,1752766257089,-447.811131,0.0002249,7]
[372800881,1752766257099,-151.0,0.0002249,7]
[372800882,1752766257108,-151.0,0.0002249,7]
[372800883,1752766257117,-151.0,0.0002249,7]
[372800884,1752766257127,-151.0,0.0002249,7]
[372800886,1752766257136,-896.80944,0.0002249,7]
[372800888,1752766257145,-896.80944,0.0002249,7]
[372800890,1752766257155,-896.80944,0.0002249,7]
[372800891,1752766257164,-896.80944,0.0002249,7]
[372800892,1752766257173,-151.0,0.0002249,7]
[372800894,1752766257278,-151.0,0.0002249,7]
[372800895,1752766257289,-163.705267,0.0002249,7]
[372800896,1752766257299,-163.705267,0.0002249,7]
[372800897,1752766257308,-163.705267,0.0002249,7]
[372800898,1752766257318,-163.705267,0.0002249,7]
[372800899,1752766257328,-151.0,0.0002249,7]
[372800900,1752766257337,-151.0,0.0002249,7]
[372800901,1752766257347,-151.0,0.0002249,7]
[372800902,1752766257357,-151.272782,0.0002249,7]
[372800903,1752766257366,-188.832589,0.0002249,7]
[372800904,1752766257376,-188.832589,0.0002249,7]
[372800905,1752766257386,-188.832589,0.0002249,7]
[372800906,1752766257396,-188.832589,0.0002249,7]
[372800907,1752766257405,-207.398537,0.0002249,7]
[372800908,1752766257415,-207.398537,0.0002249,7]
[372800909,1752766257425,-207.398537,0.0002249,7]
[372800910,1752766257434,-207.398537,0.0002249,7]
[372800911,1752766257444,-306.007601,0.0002249,7]
[372800912,1752766257453,-306.007601,0.0002249,7]
[372800913,1752766257462,-306.007601,0.0002249,7]
[372800914,1752766257472,-306.007601,0.0002249,7]
[372800915,1752766257481,-151.0,0.0002249,7]
[372800916,1752766257491,-151.0,0.0002249,7]
[372800917,1752766257501,-976.242001,0.0002249,7]
[372800918,1752766257511,-976.242001,0.0002249,7]
[372800919,1752766257521,-976.242001,0.0002249,7]
[372800920,1752766257530,-976.242001,0.0002249,7]
[372800921,1752766257539,-1493.406287,0.0002249,7]
[372800922,1752766257549,-1493.406287,0.0002249,7]
[372800923,1752766257558,-151.0,0.0002249,7]
[372800924,1752766257568,-151.0,0.0002249,7]
[372800925,1752766257578,-228.017257,0.0002249,7]
[372800926,1752766257587,-153.869837,0.0002249,7]
[372800927,1752766257597,-153.869837,0.0002249,7]
[372800928,1752766257606,-425.07497,0.0002249,7]
[372800929,1752766257616,-425.07497,0.0002249,7]
[372800930,1752766257627,-151.0,0.0002249,7]
[372800931,1752766257637,-402.05292325,0.0002249,2]
[372800932,1752766257646,-500.0,0.0002249,8]
[372800933,1752766257656,-500.0,0.0002249,2]
[372800934,1752766257665,-500.0,0.0002249,2]
[372800935,1752766257675,-170.73077212,0.0002249,2]
[372800936,1752766257684,-151.0,0.0002249,7]
[372800937,1752766257693,-419.065679,0.0002249,7]
[372800938,1752766257702,-419.065679,0.0002249,7]
[372800939,1752766257712,-246.671648,0.0002249,7]
[372800940,1752766257721,-202.08182537,0.0002249,3]
[372800941,1752766257731,-113031.92413234,0.0002249,7]
[372800942,1752766257886,-640.44467805,0.0002249,7]
[372800943,1752766257899,-3532.38032451,0.0002249,7]
[372800944,1752766257910,-50888.84711204,0.0002249,7]
[372800945,1752766257925,-7396.1390546,0.0002249,7]
[372800946,1752766257938,-773.6700976,0.0002249,7]
[372800947,1752766258430,-677.10053554,0.0002249,7]
[372800948,1752766258441,-842.44682592,0.0002249,7]
[372800949,1752766258453,-17444.99999999,0.0002249,7]
[372800950,1752766258464,-116090.0,0.0002249,7]
[372800951,1752766258475,-1255.25124958,0.0002249,7]
[372800965,1752766258669,-460.0,0.00016514,2]
[372800966,1752766258679,-460.0,0.00016789,2]
[372800967,1752766258688,-460.0,0.00017063,2]
[372800968,1752766258698,-460.0,0.00017337,2]
[372800969,1752766258708,-460.0,0.00017611,2]
[372800970,1752766258718,-863.42,0.00020901,2]
[372800971,1752766258727,-863.42,0.00021175,2]
[372800972,1752766258737,-702.85614848,0.00021449,2]
[372800981,1752766258865,-160.56385152,0.00021449,2]
[372800982,1752766258874,-165.27428531,0.00021723,2]
[372800983,1752766259101,-460.0,0.00016789,2]
[372800984,1752766259111,-460.0,0.00016789,2]
[372800985,1752766259121,-460.0,0.00017063,2]
[372800986,1752766259130,-460.0,0.00017063,2]
[372800987,1752766259249,-460.0,0.00017337,2]
[372800988,1752766259261,-460.0,0.00017611,2]
[372800989,1752766259272,-460.0,0.00017885,2]
[372800990,1752766259281,-460.0,0.00017885,2]
[372800991,1752766259291,-460.0,0.00018159,2]
[372800992,1752766259301,-460.0,0.00018159,2]
[372800993,1752766259311,-460.0,0.00018433,2]
[372800994,1752766259321,-460.0,0.00018707,2]
[372800995,1752766259333,-460.0,0.00018981,2]
[372800996,1752766259344,-460.0,0.00019255,2]
[372800997,1752766259354,-460.0,0.00019529,2]
[372800998,1752766259364,-460.0,0.00019803,2]
[372800999,1752766259374,-359.42,0.00020077,2]
[372801000,1752766259385,-698.14571469,0.00021723,2]
[372801001,1752766259394,-863.42,0.00021997,2]
[372801002,1752766259404,-863.42,0.00022271,2]
[372801003,1752766259413,-161861.04982038,0.0002249,7]
[372801004,1752766308357,278.2260293,0.00015552,2]
[372801005,1752766418192,543.091232,0.00015553,2]
[372801006,1752766448161,694.34362064,0.00016418,2]
[372801008,1752766562162,746.6623,0.00013699,2]
[372801009,1752766565393,4747.15306311,0.0001556,2]
[372801010,1752766565427,5252.84693689,0.0001556,2]
[372801012,1752766576690,3694.85,0.0001833,6]
[372801016,1752766614244,6000.0,0.0001833,6]
[372801019,1752766620470,166.0,0.00016438,2]
[372801023,1752766660801,6000.0,0.0001904,14]
[372801049,1752766710851,4000.0,0.0001904,14]
[372801050,1752766719576,702.5772595,0.00016415,2]
[372801054,1752766982639,690.64749092,0.00016414,2]
[372801056,1752767027573,3187.92831269,0.00015544,2]
[372801057,1752767027605,10000.0,0.00015544,2]
[372801058,1752767027636,10000.0,0.00015544,2]
[372801059,1752767027668,1712.07168731,0.00015544,2]
[372801062,1752767165335,-460.0,0.00016513,2]
[372801063,1752767165413,-460.0,0.00016513,2]
[372801064,1752767165507,-460.0,0.00016513,2]
[372801065,1752767165586,-460.0,0.00016513,2]
[372801066,1752767165663,-1123.19,0.00016513,2]
[372801067,1752767165742,-1951.1,0.00016513,2]
[372801068,1752767166036,-460.0,0.00016513,2]
[372801069,1752767166112,-460.0,0.00016513,2]
[372801070,1752767166185,-460.0,0.00016513,2]
[372801071,1752767166260,-460.0,0.00016513,2]
[372801072,1752767166335,-460.0,0.00016513,2]
[372801073,1752767166412,-460.0,0.00016513,2]
[372801074,1752767166492,-460.0,0.00016513,2]
[372801075,1752767166577,-460.0,0.00016513,2]
[372801076,1752767166655,-460.0,0.00016513,2]
[372801077,1752767166738,-764.65,0.00016513,2]
[372801078,1752767167866,-190.7,0.00016513,2]
[372801079,1752767167876,-171.42,0.00016513,2]
[372801080,1752767167972,-714.92,0.00016513,2]
[372801081,1752767168047,-425.20520187,0.00016513,2]
[372801082,1752767168145,-500.0,0.00016513,2]
[372801083,1752767168232,-500.0,0.00016513,2]
[372801084,1752767168317,-500.0,0.00016513,2]
[372801085,1752767168406,-500.0,0.00016513,2]
[372801086,1752767168485,-500.0,0.00016513,2]
[372801087,1752767168563,-500.0,0.00016513,2]
[372801088,1752767168645,-413.93170084,0.00016513,2]
[372801089,1752767168723,-431.88619458,0.00016513,2]
[372801090,1752767168861,-28.11380542,0.00016513,2]
[372801091,1752767168936,-460.0,0.00016513,2]
[372801092,1752767169016,-460.0,0.00016513,2]
[372801093,1752767169101,-300.0,0.00016513,2]
[372801094,1752767169192,-500.0,0.00016513,2]
[372801095,1752767169275,-460.0,0.00016513,2]
[372801096,1752767169358,-559.29,0.00016513,2]
[372801097,1752767169446,-255.05494147,0.00016513,2]
[372801098,1752767169526,-460.0,0.00016513,2]
[372801099,1752767169606,-460.0,0.00016513,2]
[372801100,1752767169683,-772.7,0.00016513,2]
[372801101,1752767169760,-109.68250622,0.00016513,2]
[372801102,1752767170107,-350.31749378,0.00016513,2]
[372801103,1752767170191,-460.0,0.00016513,2]
[372801104,1752767170287,-460.0,0.00016513,2]
[372801105,1752767170370,-460.0,0.00016513,2]
[372801106,1752767170449,-460.0,0.00016514,2]
[372801107,1752767170525,-460.0,0.00016514,2]
[372801108,1752767170615,-460.0,0.00016514,2]
[372801109,1752767170692,-460.0,0.00016514,2]
[372801110,1752767170765,-460.0,0.00016514,2]
[372801111,1752767170838,-460.0,0.00016514,2]
[372801112,1752767170911,-460.0,0.00016514,2]
[372801113,1752767171665,-460.0,0.00016514,2]
[372801114,1752767171740,-197.0072821,0.00016514,2]
[372801115,1752767171813,-504.19638153,0.00016514,2]
[372801116,1752767171886,-460.0,0.00016514,2]
[372801117,1752767171969,-536.64129561,0.00016514,2]
[372801118,1752767172057,-460.0,0.00016514,2]
[372801119,1752767172134,-460.0,0.00016514,2]
[372801120,1752767172223,-460.0,0.00016514,2]
[372801121,1752767172303,-460.0,0.00016514,2]
[372801122,1752767172378,-460.0,0.00016514,2]
[372801123,1752767172456,-460.0,0.00016514,2]
[372801124,1752767172847,-460.0,0.00016514,2]
[372801125,1752767172921,-155.65650275,0.00016514,2]
[372801126,1752767172997,-460.0,0.00016514,2]
[372801127,1752767173087,-185.76245554,0.00016514,2]
[372801128,1752767173161,-460.0,0.00016514,2]
[372801129,1752767173237,-460.0,0.00016514,2]
[372801130,1752767173315,-460.0,0.00016514,2]
[372801131,1752767173394,-460.0,0.00016514,2]
[372801132,1752767173471,-460.0,0.00016514,2]
[372801133,1752767173548,-460.0,0.00016514,2]
[372801134,1752767173620,-388.67480852,0.00016514,2]
[372801135,1752767173694,-460.0,0.00016514,2]
[372801136,1752767174080,-460.0,0.00016514,2]
[372801137,1752767174156,-460.0,0.00016514,2]
[372801138,1752767174243,-460.0,0.00016514,2]
[372801139,1752767174334,-460.0,0.00016514,2]
[372801140,1752767174414,-460.0,0.00016514,2]
[372801141,1752767174490,-460.0,0.00016514,2]
[372801142,1752767174576,-461.76,0.00016514,2]
[372801143,1752767174659,-460.0,0.00016514,2]
[372801144,1752767174733,-846.6,0.00016514,2]
[372801145,1752767175209,-943.28,0.00016514,2]
[372801146,1752767175288,-460.0,0.00016514,2]
[372801147,1752767175373,-460.0,0.00016514,2]
[372801148,1752767175457,-460.0,0.00016514,2]
[372801149,1752767175538,-460.0,0.00016514,2]
[372801150,1752767175620,-460.0,0.00016514,2]
[372801151,1752767175700,-460.0,0.00016514,2]
[372801152,1752767175783,-460.0,0.00016514,2]
[372801153,1752767175870,-460.0,0.00016514,2]
[372801154,1752767175952,-174.04,0.00016514,2]
[372801155,1752767176348,-405.36,0.00016514,2]
[372801156,1752767176430,-460.0,0.00016514,2]
[372801157,1752767176511,-460.0,0.00016514,2]
[372801158,1752767176610,-522.01,0.00016514,2]
[372801159,1752767176689,-1716.44,0.00016514,2]
[372801160,1752767176767,-460.0,0.00016514,2]
[372801161,1752767176847,-460.0,0.00016514,2]
[372801162,1752767176926,-460.0,0.00016514,2]
[372801163,1752767177430,-460.0,0.00016514,2]
[372801164,1752767177513,-460.0,0.00016514,2]
[372801165,1752767177597,-460.0,0.00016514,2]
[372801166,1752767177677,-460.0,0.00016514,2]
[372801167,1752767177758,-460.0,0.00016514,2]
[372801168,1752767177839,-460.0,0.00016514,2]
[372801169,1752767177920,-460.0,0.00016514,2]
[372801170,1752767177999,-460.0,0.00016514,2]
[372801171,1752767178077,-460.0,0.00016514,2]
[372801172,1752767178158,-460.0,0.00016514,2]
[372801173,1752767178240,-340.0,0.00016514,2]
[372801174,1752767178622,-120.0,0.00016514,2]
[372801175,1752767178703,-460.0,0.00016514,2]
[372801176,1752767178782,-460.0,0.00016514,2]
[372801177,1752767178862,-460.0,0.00016515,2]
[372801178,1752767178943,-460.0,0.00016515,2]
[372801179,1752767179020,-460.0,0.00016515,2]
[372801180,1752767179096,-484.68926773,0.00016515,2]
[372801181,1752767179178,-509.81961488,0.00016515,2]
[372801182,1752767179259,-460.0,0.00016515,2]
[372801183,1752767179342,-460.0,0.00016515,2]
[372801184,1752767179422,-460.0,0.00016515,2]
[372801185,1752767179520,-460.0,0.00016515,2]
[372801186,1752767179595,-460.0,0.00016515,2]
[372801187,1752767179676,-502.25,0.00016515,2]
[372801188,1752767179757,-460.0,0.00016515,2]
[372801189,1752767179835,-460.0,0.00016516,2]
[372801190,1752767179913,-460.0,0.00016516,2]
[372801191,1752767179991,-460.0,0.00016517,2]
[372801192,1752767180069,-460.0,0.00016517,2]
[372801193,1752767180145,-998.85,0.00016517,2]
[372801194,1752767180227,-97.8,0.00016517,2]
[372801195,1752767180470,-362.2,0.00016517,2]
[372801196,1752767180548,-1025.25,0.00016517,2]
[372801197,1752767180627,-460.0,0.00016517,2]
[372801198,1752767180700,-173.18,0.00016582,3]
[372801199,1752767180773,-519.59,0.00016582,3]
[372801200,1752767187344,-160.22,0.00016513,2]
[372801201,1752767187353,-337.98495268,0.00016517,2]
[372801202,1752767187421,-122.01504732,0.00016517,2]
[372801203,1752767187432,-337.98495268,0.00016592,2]
[372801204,1752767187508,-362.2,0.00016592,2]
[372801205,1752767187586,-1025.25,0.00016592,2]
[372801206,1752767187656,-460.0,0.00016592,2]
[372801207,1752767187719,-173.18,0.00016592,2]
[372801208,1752767187789,-519.59,0.00016592,2]
[372801209,1752767187864,-4919.56,0.00016592,2]
[372801210,1752767188051,-10000.0,0.00016592,2]
[372801211,1752767188119,-10000.0,0.00016592,2]
[372801212,1752767188186,-10000.0,0.00016592,2]
[372801213,1752767188302,-10000.0,0.00016592,2]
[372801214,1752767188380,-460.0,0.00016513,2]
[372801215,1752767188390,-9540.0,0.00016592,2]
[372801216,1752767188479,-10000.0,0.00016592,2]
[372801220,1752767229537,150.0,0.00015406,2]
[372801221,1752767239738,1688.3557512,0.00015621,2]
[372801223,1752767279898,-300.0,0.00016512,2]
[372801224,1752767279982,-497.20491522,0.00016513,2]
[372801225,1752767280075,-648.74,0.00016513,2]
[372801226,1752767280168,-2491.44,0.00016513,2]
[372801227,1752767280256,-460.0,0.00016513,2]
[372801228,1752767280349,-463.19108857,0.00016513,2]
[372801229,1752767280795,-460.0,0.00016513,2]
[372801230,1752767280869,-463.0276002,0.00016513,2]
[372801231,1752767280949,-1562.56,0.00016513,2]
[372801232,1752767281024,-460.0,0.00016513,2]
[372801233,1752767281098,-460.0,0.00016513,2]
[372801234,1752767281188,-460.0,0.00016513,2]
[372801235,1752767281267,-536.56,0.00016513,2]
[372801236,1752767281342,-460.0,0.00016513,2]
[372801237,1752767281626,-460.0,0.00016513,2]
[372801238,1752767281699,-460.0,0.00016513,2]
[372801239,1752767281770,-460.0,0.00016513,2]
[372801240,1752767281843,-460.0,0.00016513,2]
[372801241,1752767281913,-160.84955277,0.00016513,2]
[372801242,1752767281996,-460.0,0.00016513,2]
[372801243,1752767282066,-460.0,0.00016513,2]
[372801244,1752767282137,-460.0,0.00016513,2]
[372801245,1752767282214,-460.0,0.00016513,2]
[372801246,1752767282299,-460.0,0.00016513,2]
[372801247,1752767282379,-460.0,0.00016513,2]
[372801248,1752767282461,-18.30089446,0.00016514,2]
[372801249,1752767282628,-441.69910554,0.00016514,2]
[372801250,1752767282712,-460.0,0.00016514,2]
[372801251,1752767282783,-460.0,0.00016514,2]
[372801252,1752767282856,-1345.21,0.00016514,2]
[372801253,1752767282930,-460.0,0.00016514,2]
[372801254,1752767283009,-1240.14,0.00016514,2]
[372801255,1752767283078,-460.0,0.00016514,2]
[372801256,1752767283837,-460.0,0.00016514,2]
[372801257,1752767283913,-460.0,0.00016515,2]
[372801258,1752767283989,-2288.15,0.00016517,2]
[372801259,1752767284070,-500.0,0.00016591,2]
[372801260,1752767284156,-500.0,0.00016591,2]
[372801261,1752767284243,-500.0,0.00016591,2]
[372801262,1752767284328,-83.7,0.00016591,2]
[372801263,1752767284643,-416.3,0.00016591,2]
[372801264,1752767284729,-299.75219059,0.00016591,2]
[372801265,1752767284807,-500.0,0.00016591,2]
[372801266,1752767284895,-200.0,0.00016591,2]
[372801267,1752767286571,-300.0,0.00016512,2]
[372801268,1752767286745,-460.0,0.00016513,2]
[372801269,1752767287507,-299.75219059,0.00016592,2]
[372801270,1752767287707,-500.0,0.00016592,2]
[372801271,1752767287780,-200.0,0.00016592,2]
[372801272,1752767287862,-7167.89561882,0.00016592,2]
[372801273,1752767287968,-10000.0,0.00016592,2]
[372801274,1752767288062,-10000.0,0.00016592,2]
[372801275,1752767288153,-10000.0,0.00016592,2]
[372801276,1752767288237,-300.0,0.00016592,2]
[372801277,1752767288315,-9400.0,0.00016592,2]
[372801278,1752767288389,-460.0,0.00016592,2]
[372801279,1752767288469,-9080.0,0.00016592,2]
[372801280,1752767288547,-10000.0,0.00016592,2]
[372801281,1752767288636,-4745.41276209,0.00016592,2]
[372801282,1752767288716,-509.17447582,0.00016592,2]
[372801283,1752767289649,460.0,0.00016513,2]
[372801284,1752767290297,460.0,0.00016513,2]
[372801285,1752767293300,460.0,0.00016513,2]
[372801286,1752767298000,460.0,0.00016513,2]
[372801287,1752767298336,730.1,0.00016517,2]
[372801288,1752767301971,543.38,0.00016513,2]
[372801289,1752767302909,460.0,0.00016515,2]
[372801290,1752767304573,638.9,0.00016514,2]
[372801291,1752767309029,460.0,0.00016591,2]
[372801292,1752767312021,460.0,0.00016513,2]
[372801293,1752767316029,460.0,0.00016513,2]
[372801294,1752767317754,460.0,0.00016514,2]
[372801296,1752767321146,487.10523831,0.00016514,2]
[372801297,1752767324809,460.0,0.00016513,2]
[372801298,1752767328254,460.0,0.00016514,2]
[372801299,1752767328332,797.13,0.00016513,2]
[372801300,1752767328930,460.0,0.00016591,2]
[372801301,1752767329733,460.0,0.00016513,2]
[372801302,1752767329954,460.0,0.00016514,2]
[372801303,1752767330908,363.38476169,0.00016513,2]
[372801304,1752767330971,96.61523831,0.00016513,2]
[372801305,1752767331754,460.0,0.00016513,2]
[372801306,1752767332984,460.0,0.00016513,2]
[372801307,1752767333428,500.0,0.00016513,2]
[372801308,1752767333726,460.0,0.00016513,2]
[372801309,1752767333933,460.0,0.00016514,2]
[372801310,1752767334730,500.0,0.00016514,2]
[372801311,1752767335318,500.0,0.00016591,2]
[372801313,1752767335569,500.0,0.00016591,2]
[372801314,1752767335810,500.0,0.00016591,2]
[372801315,1752767336053,500.0,0.00016591,2]
[372801316,1752767336309,500.0,0.00016591,2]
[372801317,1752767339470,460.0,0.00016513,2]
[372801318,1752767340082,460.0,0.00016591,2]
[372801319,1752767345639,205.92428686,0.00016553,2]
[372801320,1752767348733,460.0,0.00016514,2]
[372801321,1752767352318,460.0,0.00016513,2]
[372801322,1752767354435,460.0,0.00016591,2]
[372801323,1752767365816,415.02916065,0.00016513,2]
[372801324,1752767368300,460.0,0.00016513,2]
[372801325,1752767368370,460.0,0.00016514,2]
[372801326,1752767368515,722.43131418,0.00016514,2]
[372801327,1752767368580,1121.06868582,0.00016514,2]
[372801328,1752767369462,460.0,0.00016591,2]
[372801329,1752767371338,460.0,0.00016513,2]
[372801330,1752767374815,460.0,0.00016513,2]
[372801331,1752767375038,460.0,0.00016514,2]
[372801332,1752767378163,2331.75,0.00016514,2]
[372801333,1752767380384,991.15,0.00016591,2]
[372801334,1752767383228,460.0,0.00016513,2]
[372801335,1752767385988,460.0,0.00016513,2]
[372801336,1752767386497,460.0,0.00016513,2]
[372801338,1752767388983,460.0,0.00016513,2]
[372801339,1752767391518,460.0,0.00016513,2]
[372801340,1752767391885,460.0,0.00016515,2]
[372801341,1752767393467,460.0,0.00016513,2]
[372801342,1752767395607,460.0,0.00016513,2]
[372801343,1752767396460,36.03131418,0.00016514,2]
[372801344,1752767396545,423.96868582,0.00016514,2]
[372801345,1752767397604,460.0,0.00016513,2]
[372801346,1752767400615,508.28,0.00016514,2]
[372801347,1752767402482,460.0,0.00016513,2]
[372801348,1752767402714,460.0,0.00016513,2]
[372801349,1752767403001,460.0,0.00016513,2]
[372801350,1752767405341,460.0,0.00016514,2]
[372801351,1752767408624,460.0,0.00016514,2]
[372801352,1752767409253,460.0,0.00016513,2]
[372801353,1752767416521,460.0,0.00016513,2]
[372801354,1752767418004,460.0,0.00016513,2]
[372801355,1752767418890,271.545616,0.00015802,2]
[372801356,1752767421344,1289.16,0.00016514,2]
[372801358,1752767427059,460.0,0.00016514,2]
[372801359,1752767427798,701.42,0.00016513,2]
[372801360,1752767431192,699.68,0.00016514,2]
[372801362,1752767432325,-167.73503264,0.00016786,2]